fUSD/lending_fUSD_20250611
["ID","MTS","AMOUNT","RATE_DAILY","PERIOD"]
[365341619,1749609048494,-460.0,0.00016767,2]
[365341620,1749609048504,-490.0,0.00016767,2]
[365341621,1749609048514,-490.0,0.00016767,2]
[365341622,1749609048524,-460.0,0.00016767,2]
[365341623,1749609048534,-460.0,0.00016767,2]
[365341624,1749609048545,-643.14,0.00016767,2]
[365341625,1749609048554,-273.50060666,0.00016767,2]
[365341626,1749609048564,-558.06997418,0.00016767,2]
[365341627,1749609048576,-460.0,0.00016767,2]
[365341628,1749609048585,-552.1423264,0.00016767,2]
[365341629,1749609048595,-490.0,0.00016767,2]
[365341630,1749609048606,-504.79366019,0.00016767,2]
[365341631,1749609048616,-460.0,0.00016767,2]
[365341632,1749609048628,-490.0,0.00016767,2]
[365341633,1749609048638,-460.0,0.00016767,2]
[365341634,1749609048648,-490.0,0.00016767,2]
[365341635,1749609048657,-570.67747728,0.00016767,2]
[365341636,1749609048667,-787.65,0.00016767,2]
[365341637,1749609048677,-410.79799531,0.00016767,2]
[365341638,1749609048687,-490.0,0.00016767,2]
[365341639,1749609048697,-490.0,0.00016767,2]
[365341640,1749609048708,-460.0,0.00016767,2]
[365341641,1749609048718,-490.0,0.00016767,2]
[365341642,1749609048728,-460.0,0.00016767,2]
[365341643,1749609048739,-540.53534438,0.00016767,2]
[365341644,1749609048750,-582.31640039,0.00016767,2]
[365341645,1749609048759,-460.0,0.00016767,2]
[365341646,1749609048770,-490.0,0.00016767,2]
[365341647,1749609048780,-382.50901399,0.00016767,2]
[365341648,1749609048790,-460.0,0.00016767,2]
[365341649,1749609048800,-460.0,0.00016767,2]
[365341650,1749609048810,-404.72102835,0.00016767,2]
[365341651,1749609048820,-274.52498541,0.00016767,2]
[365341652,1749609048830,-531.49342663,0.00016767,2]
[365341653,1749609048840,-605.14,0.00016767,2]
[365341654,1749609048850,-425.34793835,0.00016767,2]
[365341655,1749609048859,-460.0,0.00016767,2]
[365341656,1749609048869,-460.0,0.00016767,2]
[365341657,1749609048879,-490.0,0.00016767,2]
[365341658,1749609048888,-490.0,0.00016767,2]
[365341659,1749609048897,-460.0,0.00016767,2]
[365341660,1749609048907,-460.0,0.00016767,2]
[365341661,1749609048916,-460.0,0.00016767,2]
[365341662,1749609048926,-460.0,0.00016767,2]
[365341663,1749609048935,-460.0,0.00016767,2]
[365341664,1749609048944,-460.0,0.00016767,2]
[365341665,1749609048954,-490.0,0.00016931,2]
[365341666,1749609048964,-490.0,0.00016931,2]
[365341667,1749609048974,-151.01,0.00016931,2]
[365341668,1749609048985,-490.0,0.00016931,2]
[365341669,1749609048994,-490.0,0.00016931,2]
[365341670,1749609049004,-490.0,0.00016931,2]
[365341671,1749609049014,-490.0,0.00016931,2]
[365341672,1749609049024,-490.0,0.00016931,2]
[365341673,1749609049034,-643.14,0.00016931,2]
[365341674,1749609049044,-490.0,0.00016931,2]
[365341675,1749609049053,-249.89869211,0.00016931,2]
[365341676,1749609049063,-490.0,0.00016931,2]
[365341677,1749609049073,-787.65,0.00016931,2]
[365341678,1749609049082,-490.0,0.00016931,2]
[365341679,1749609049093,-288.7,0.00016931,2]
[365341680,1749609049107,-228.24863304,0.00016931,2]
[365341681,1749609049118,-286.04,0.00016931,2]
[365341682,1749609049127,-202.01,0.00016931,2]
[365341683,1749609049137,-311.07753421,0.00016931,2]
[365341684,1749609049148,-833.29909032,0.00017076,2]
[365341685,1749609049157,-490.0,0.00017095,2]
[365341686,1749609049167,-330.88,0.00017095,2]
[365341687,1749609049179,-490.0,0.00017095,2]
[365341688,1749609049189,-490.0,0.00017095,2]
[365341689,1749609049199,-608.1,0.00017095,2]
[365341690,1749609049209,-490.0,0.00017095,2]
[365341691,1749609049218,-490.0,0.00017095,2]
[365341692,1749609049229,-643.14,0.00017095,2]
[365341693,1749609049239,-368.6,0.00017095,2]
[365341694,1749609049248,-278.66,0.00017095,2]
[365341695,1749609049258,-787.65,0.00017095,2]
[365341696,1749609049267,-490.0,0.00017095,2]
[365341697,1749609049277,-202.0,0.00017242,3]
[365341698,1749609049287,-490.0,0.0001726,2]
[365341699,1749609049296,-490.0,0.0001726,2]
[365341700,1749609049306,-490.0,0.0001726,2]
[365341701,1749609049315,-335.93,0.0001726,2]
[365341702,1749609049324,-490.0,0.0001726,2]
[365341703,1749609049334,-643.14,0.0001726,2]
[365341704,1749609049344,-787.65,0.0001726,2]
[365341705,1749609049353,-190.27,0.0001726,2]
[365341706,1749609049363,-490.0,0.00017424,2]
[365341707,1749609049373,-490.0,0.00017424,2]
[365341708,1749609049382,-490.0,0.00017424,2]
[365341709,1749609049391,-490.0,0.00017424,2]
[365341710,1749609049401,-643.14,0.00017424,2]
[365341711,1749609049410,-787.65,0.00017424,2]
[365341712,1749609049419,-490.0,0.00017589,2]
[365341713,1749609049429,-490.0,0.00017589,2]
[365341714,1749609049439,-490.0,0.00017589,2]
[365341715,1749609049448,-490.0,0.00017589,2]
[365341716,1749609049458,-643.14,0.00017589,2]
[365341717,1749609049468,-787.65,0.00017589,2]
[365341718,1749609049478,-169.07,0.00017722,2]
[365341719,1749609049488,-490.0,0.00017753,2]
[365341720,1749609049497,-490.0,0.00017753,2]
[365341721,1749609049507,-347.58866562,0.00017753,2]
[365341722,1749609049516,-490.0,0.00017753,2]
[365341723,1749609049526,-643.14,0.00017753,2]
[365341724,1749609049536,-787.65,0.00017753,2]
[365341725,1749609049546,-178.71,0.00017766,2]
[365341726,1749609049555,-500.0,0.00017808,2]
[365341727,1749609049564,-500.0,0.00017808,2]
[365341728,1749609049574,-462.43539106,0.00017808,2]
[365341729,1749609049583,-17963.13,0.0001783,2]
[365341730,1749609049592,-303.09039976,0.000179,2]
[365341731,1749609049602,-192.88493076,0.000179,2]
[365341732,1749609049611,-490.0,0.00017917,2]
[365341733,1749609049621,-490.0,0.00017917,2]
[365341734,1749609049630,-490.0,0.00017917,2]
[365341735,1749609049640,-643.14,0.00017917,2]
[365341736,1749609049649,-787.65,0.00017917,2]
[365341737,1749609049659,-48107.95447296,0.00017924,2]
[365341738,1749609049853,-16656.26552704,0.00017924,2]
[365341739,1749609049863,-763.0,0.00017961,2]
[365341740,1749609049871,-420.0,0.00017963,2]
[365341741,1749609049881,-303.09039961,0.00017969,2]
[365341742,1749609049890,-763.0,0.00017985,2]
[365341743,1749609049899,-150.0,0.00017999,7]
[365341744,1749609049909,-265.52550372,0.00018,3]
[365341745,1749609049918,-6102.30596521,0.00018,2]
[365341746,1749609049927,-303.09039961,0.00018038,2]
[365341747,1749609049936,-490.0,0.00018082,2]
[365341748,1749609049944,-490.0,0.00018082,2]
[365341749,1749609049954,-490.0,0.00018082,2]
[365341750,1749609049963,-643.14,0.00018082,2]
[365341751,1749609049972,-787.65,0.00018082,2]
[365341752,1749609049981,-303.09039961,0.00018107,2]
[365341753,1749609049990,-763.0,0.00018155,2]
[365341754,1749609049999,-303.09039961,0.00018176,2]
[365341755,1749609050008,-685.49,0.00018195,2]
[365341756,1749609050018,-303.09039961,0.00018245,2]
[365341757,1749609050027,-490.0,0.00018246,2]
[365341758,1749609050036,-490.0,0.00018246,2]
[365341759,1749609050045,-490.0,0.00018246,2]
[365341760,1749609050054,-643.14,0.00018246,2]
[365341761,1749609050064,-787.65,0.00018246,2]
[365341762,1749609050073,-202.0,0.0001826,4]
[365341763,1749609050083,-303.09039961,0.00018314,2]
[365341764,1749609050092,-666.0,0.00018335,2]
[365341765,1749609050103,-303.09039961,0.00018383,2]
[365341766,1749609050113,-490.0,0.0001841,2]
[365341767,1749609050122,-581.71983741,0.0001841,2]
[365341768,1749609050131,-490.0,0.0001841,2]
[365341769,1749609050141,-643.14,0.0001841,2]
[365341770,1749609050151,-787.65,0.0001841,2]
[365341771,1749609050160,-303.09039961,0.00018452,2]
[365341772,1749609050169,-500.0,0.00018466,2]
[365341773,1749609050181,-763.0,0.00018486,2]
[365341774,1749609050190,-763.0,0.00018511,2]
[365341775,1749609050199,-303.09039961,0.00018521,2]
[365341776,1749609050208,-250.0,0.00018525,2]
[365341777,1749609050216,-490.0,0.00018575,2]
[365341778,1749609050226,-490.0,0.00018575,2]
[365341779,1749609050234,-643.14,0.00018575,2]
[365341780,1749609050243,-787.65,0.00018575,2]
[365341781,1749609050252,-303.09039961,0.0001859,2]
[365341782,1749609050261,-303.09039961,0.00018659,2]
[365341783,1749609050271,-763.0,0.00018667,2]
[365341784,1749609050280,-303.09039961,0.00018728,2]
[365341785,1749609050289,-490.0,0.00018739,2]
[365341786,1749609050297,-315.4,0.00018739,2]
[365341787,1749609050307,-643.14,0.00018739,2]
[365341788,1749609050315,-787.65,0.00018739,2]
[365341789,1749609050324,-207.4,0.0001879,2]
[365341790,1749609050333,-1032.68907579,0.0001879,2]
[365341791,1749609050343,-500.0,0.0001879,2]
[365341792,1749609050351,-500.0,0.0001879,2]
[365341793,1749609050360,-500.0,0.0001879,2]
[365341794,1749609050369,-500.0,0.0001879,2]
[365341795,1749609050378,-500.0,0.0001879,2]
[365341796,1749609050387,-500.0,0.0001879,2]
[365341797,1749609050395,-267.45083424,0.0001879,2]
[365341798,1749609050405,-151.0,0.0001879,2]
[365341799,1749609050414,-303.09039961,0.00018797,2]
[365341800,1749609050423,-763.0,0.00018844,2]
[365341801,1749609050433,-303.09039961,0.00018866,2]
[365341802,1749609050442,-362.9711,0.000189,2]
[365341803,1749609050452,-208.82940014,0.000189,2]
[365341804,1749609050462,-490.0,0.00018904,2]
[365341805,1749609050471,-643.14,0.00018904,2]
[365341806,1749609050482,-787.65,0.00018904,2]
[365341807,1749609050491,-303.09039961,0.00018934,2]
[365341808,1749609050501,-10656.95687991,0.00019,2]
[365341809,1749609050510,-250.0,0.00019,2]
[365341810,1749609050519,-30000.0,0.00019,2]
[365341811,1749609050529,-303.09039961,0.00019003,2]
[365341812,1749609050539,-208.82940007,0.00019011,2]
[365341813,1749609050548,-490.0,0.00019068,2]
[365341814,1749609050558,-643.14,0.00019068,2]
[365341815,1749609050568,-787.65,0.00019068,2]
[365341816,1749609050577,-763.0,0.0001907,2]
[365341817,1749609050587,-303.09039961,0.00019072,2]
[365341818,1749609050596,-208.82940007,0.00019122,2]
[365341819,1749609050606,-763.0,0.00019128,2]
[365341820,1749609050617,-303.09039961,0.00019141,2]
[365341821,1749609050627,-150.18394348,0.00019178,2]
[365341822,1749609050636,-169.84,0.00019178,2]
[365341823,1749609050645,-303.09039961,0.0001921,2]
[365341824,1749609050654,-490.0,0.00019232,2]
[365341825,1749609050664,-643.14,0.00019232,2]
[365341826,1749609050673,-787.65,0.00019232,2]
[365341827,1749609050683,-208.82940007,0.00019233,2]
[365341828,1749609050692,-1000.0,0.00019241,2]
[365341829,1749609050702,-202.0,0.00019278,6]
[365341830,1749609050711,-303.09039961,0.00019279,2]
[365341831,1749609050720,-763.0,0.00019333,2]
[365341832,1749609050731,-208.82940007,0.00019344,2]
[365341833,1749609050740,-303.09039961,0.00019348,2]
[365341834,1749609050749,-614.59869094,0.00019381,2]
[365341835,1749609050758,-490.0,0.00019397,2]
[365341836,1749609050767,-643.14,0.00019397,2]
[365341837,1749609050777,-787.65,0.00019397,2]
[365341838,1749609050786,-303.09039961,0.00019417,2]
[365341839,1749609050796,-208.82940007,0.00019456,2]
[365341840,1749609050806,-303.09039961,0.00019486,2]
[365341841,1749609050815,-763.0,0.00019508,2]
[365341842,1749609050824,-303.09039961,0.00019555,2]
[365341843,1749609050834,-166.56857981,0.00019561,2]
[365341844,1749609050843,-678.499,0.00019561,2]
[365341845,1749609050853,-643.14,0.00019561,2]
[365341846,1749609050863,-787.65,0.00019561,2]
[365341847,1749609050872,-478.81561521,0.00019567,2]
[365341848,1749609050881,-208.82940007,0.00019567,2]
[365341849,1749609050891,-914.639987,0.00019599,2]
[365341850,1749609050900,-763.0,0.00019605,2]
[365341851,1749609050909,-303.09039961,0.00019624,2]
[365341852,1749609050918,-587.0,0.00019631,2]
[365341853,1749609050927,-763.0,0.00019651,2]
[365341854,1749609050936,-478.81561521,0.00019678,2]
[365341855,1749609050945,-208.82940007,0.00019678,2]
[365341856,1749609050956,-303.09039961,0.00019693,2]
[365341857,1749609050965,-643.14,0.00019726,2]
[365341858,1749609050975,-787.65,0.00019726,2]
[365341859,1749609050984,-303.09039961,0.00019762,2]
[365341860,1749609050993,-478.81561521,0.00019789,2]
[365341861,1749609051002,-208.82940007,0.00019789,2]
[365341862,1749609051011,-763.0,0.00019829,2]
[365341863,1749609051020,-303.09039961,0.00019831,2]
[365341864,1749609051030,-2465.75014421,0.0001988,3]
[365341865,1749609051039,-12190.36721,0.0001988,3]
[365341866,1749609051052,-78652.38026915,0.0001988,3]
[365341867,1749609051061,-14258.33653994,0.0001988,2]
[365341868,1749609051071,-643.14,0.0001989,2]
[365341869,1749609051080,-787.65,0.0001989,2]
[365341870,1749609051089,-533.0,0.000199,2]
[365341871,1749609051100,-411.2323,0.000199,2]
[365341872,1749609051110,-478.81561521,0.000199,2]
[365341873,1749609051119,-3447.784,0.000199,2]
[365341874,1749609051129,-618.6462,0.000199,2]
[365341875,1749609051139,-208.82940007,0.000199,2]
[365341876,1749609051149,-303.09039961,0.000199,2]
[365341877,1749609051158,-192.88493075,0.000199,2]
[365341878,1749609051167,-1673.0,0.00019936,2]
[365341879,1749609051178,-945.0,0.00019936,2]
[365341880,1749609051187,-1725.674,0.00019936,2]
[365341881,1749609051196,-3330.0,0.00019936,2]
[365341882,1749609051205,-337.99,0.00019966,2]
[365341883,1749609051372,-165.18,0.00019966,2]
[365341884,1749609051383,-712.47,0.00019966,2]
[365341885,1749609051392,-354.51,0.00019966,2]
[365341886,1749609051401,-343.06,0.00019966,2]
[365341887,1749609051411,-354.51,0.00019966,2]
[365341888,1749609051420,-353.95,0.00019966,2]
[365341889,1749609051429,-150.0,0.00019973,2]
[365341890,1749609051438,-150.0,0.00019973,2]
[365341891,1749609051448,-150.0,0.00019973,2]
[365341892,1749609051457,-1000.0,0.00019999,2]
[365341893,1749609051467,-629.47,0.00019999,2]
[365341894,1749609051477,-150.0,0.00019999,2]
[365341895,1749609051486,-500.0,0.00019999,2]
[365341896,1749609051496,-500.0,0.00019999,2]
[365341897,1749609051505,-500.0,0.00019999,2]
[365341898,1749609051515,-500.0,0.00019999,2]
[365341899,1749609051524,-500.0,0.00019999,2]
[365341900,1749609051533,-500.0,0.00019999,2]
[365341901,1749609051543,-196.38099634,0.00019999,2]
[365341902,1749609051552,-271.06647129,0.00019999,2]
[365341903,1749609051562,-500.0,0.00019999,2]
[365341904,1749609051572,-500.0,0.00019999,2]
[365341905,1749609051582,-500.0,0.00019999,2]
[365341906,1749609051591,-150.33,0.0002,2]
[365341907,1749609051601,-19860.53104839,0.0002,2]
[365341908,1749609051627,-490.0,0.00016438,2]
[365341909,1749609051638,-490.0,0.00016438,2]
[365341910,1749609051647,-155.0,0.00019592,2]
[365341911,1749609051656,-54.6951937,0.0002,2]
[365341912,1749609051666,-89.9048063,0.0002,2]
[365341913,1749609051677,-1771.5825316,0.0002,2]
[365341914,1749609051694,-7526.16613079,0.0002,2]
[365341915,1749609051815,-348.97187161,0.00016438,2]
[365341916,1749609051825,-250.0,0.00016438,2]
[365341917,1749609051835,-490.0,0.00016438,2]
[365341918,1749609051844,-490.0,0.00016438,2]
[365341919,1749609051853,-490.0,0.00016438,2]
[365341920,1749609051863,-470.0,0.00016602,2]
[365341921,1749609051872,-470.0,0.00016602,2]
[365341922,1749609051881,-250.0,0.00016602,2]
[365341923,1749609051891,-490.0,0.00016602,2]
[365341924,1749609051900,-548.57702496,0.00016602,2]
[365341925,1749609051909,-490.0,0.00016602,2]
[365341926,1749609051919,-250.0,0.00016767,2]
[365341927,1749609051928,-460.0,0.00016767,2]
[365341928,1749609051938,-62548.14700485,0.0002,2]
[365341929,1749609051950,-647417.43251157,0.0002,2]
[365341930,1749609051961,-1410.1,0.0002,2]
[365341931,1749609052219,-241.31521376,0.00016438,2]
[365341932,1749609052229,-552.28,0.00016767,2]
[365341933,1749609052238,-9533.96786624,0.0002,2]
[365341934,1749609052253,-266.58125291,0.0002,2]
[365341935,1749609131092,153.55,0.000199,31]
[365341936,1749609131162,153.55,0.000199,31]
[365341937,1749609131264,153.55,0.000199,31]
[365341938,1749609131326,153.55,0.000199,31]
[365341939,1749609131390,153.55,0.000199,31]
[365341940,1749609131452,153.55,0.000199,31]
[365341941,1749609132589,153.55,0.000199,31]
[365341942,1749609277507,201.33418383,0.00024649,120]
[365341951,1749609371776,202.0,0.00015224,2]
[365341953,1749609551681,301.43,0.0002,30]
[365341954,1749609559121,1333.0,0.00024338,120]
[365341955,1749609732231,202.0,0.00015344,2]
[365341956,1749609751538,616.94,0.00015797,2]
[365341957,1749609803022,31959.79,0.0002,30]
[365341958,1749609934096,-512.14988324,0.00016164,2]
[365341959,1749609934118,-529.79200548,0.00016164,2]
[365341960,1749609934139,-161.18108161,0.0001633,2]
[365341961,1749609981676,173.31,0.00013699,2]
[365341963,1749610038135,-300.0,0.00016171,2]
[365341964,1749610038157,-1133.68486005,0.00016172,2]
[365341965,1749610047158,-430.93140632,0.00016172,2]
[365341966,1749610049127,-8842.65305463,0.00016172,2]
[365341967,1749610091712,202.0,0.00015489,2]
[365341968,1749610159282,-758.43,0.000161,2]
[365341969,1749610159307,-2376.4725127,0.00016172,2]
[365341978,1749610231544,-669.3781663,0.00016172,2]
[365341979,1749610231555,-178.20859534,0.0001623,2]
[365341980,1749610231566,-75.81891839,0.0001633,2]
[365341981,1749610231576,-119.27204097,0.00016338,2]
[365341982,1749610231588,-788.34941741,0.00016338,2]
[365341983,1749610231598,-1108.2502,0.00016338,2]
[365341984,1749610231608,-157.67821543,0.00016428,2]
[365341985,1749610231617,-192.63220208,0.00016428,2]
[365341986,1749610231627,-300.0,0.00016437,2]
[365341987,1749610231636,-1200.0,0.00016437,2]
[365341988,1749610231647,-45.84157891,0.00016438,2]
[365341989,1749610231659,-428.10245836,0.00016438,2]
[365341990,1749610231669,-460.0,0.00016438,2]
[365341991,1749610231679,-463.12358614,0.00016438,2]
[365341992,1749610231689,-502.75687863,0.00016438,2]
[365341993,1749610231699,-490.0,0.00016438,2]
[365341994,1749610231708,-431.03511487,0.00016438,2]
[365341995,1749610231720,-28.96488513,0.00016438,2]
[365341996,1749610231730,-462.29460079,0.00016438,2]
[365341997,1749610231739,-460.86881359,0.00016438,2]
[365341998,1749610231750,-307.7872109,0.00016438,2]
[365341999,1749610231759,-476.84909264,0.00016438,2]
[365342000,1749610231780,-5.05680717,0.00016438,2]
[365342001,1749610231790,-298.30173202,0.00016438,2]
[365342002,1749610231801,-106.42480026,0.00016438,2]
[365342003,1749610231811,-490.0,0.00016438,2]
[365342004,1749610231820,-490.0,0.00016438,2]
[365342005,1749610231829,-187.40048964,0.00016438,2]
[365342006,1749610231839,-488.39746164,0.00016438,2]
[365342007,1749610231848,-457.47699215,0.00016438,2]
[365342008,1749610231858,-450.91636947,0.00016438,2]
[365342009,1749610231868,-482.37775776,0.00016438,2]
[365342010,1749610231879,-464.97412895,0.00016438,2]
[365342011,1749610231889,-490.0,0.00016438,2]
[365342012,1749610231900,-540.43834284,0.00016438,2]
[365342013,1749610231909,-299.52695126,0.00016438,2]
[365342014,1749610231922,-190.47304874,0.00016438,2]
[365342015,1749610231931,-73.22603414,0.00016438,2]
[365342016,1749610231943,-416.77396586,0.00016438,2]
[365342017,1749610231952,-490.0,0.00016438,2]
[365342018,1749610231962,-143.22603414,0.00016438,2]
[365342019,1749610231973,-346.77396586,0.00016438,2]
[365342034,1749610232198,-382.5403863,0.00016438,2]
[365342035,1749610232219,-107.4596137,0.00016438,2]
[365342036,1749610232228,-494.4,0.00016438,2]
[365342037,1749610232239,-482.1,0.00016438,2]
[365342038,1749610232250,-490.0,0.00016438,2]
[365342039,1749610232261,-190.28188178,0.00016438,2]
[365342040,1749610232278,-299.71811822,0.00016438,2]
[365342041,1749610232287,-490.0,0.00016438,2]
[365342043,1749610232297,-490.0,0.00016438,2]
[365342044,1749610232306,-490.0,0.00016438,2]
[365342046,1749610232315,-490.0,0.00016438,2]
[365342048,1749610232325,-480.0,0.00016438,2]
[365342050,1749610232334,-311.48823694,0.00016438,2]
[365342558,1749610237582,-178.51176306,0.00016438,2]
[365342560,1749610237594,-220.71402069,0.00016438,2]
[365342562,1749610237612,-208.41627324,0.00016438,2]
[365342564,1749610237622,-490.0,0.00016438,2]
[365342566,1749610237633,-119.67940857,0.00016438,2]
[365342577,1749610237736,-370.32059143,0.00016438,2]
[365342579,1749610237746,-514.13845786,0.00016438,2]
[365342581,1749610237756,-490.0,0.00016438,2]
[365342583,1749610237765,-490.0,0.00016438,2]
[365342585,1749610237775,-490.0,0.00016438,2]
[365342587,1749610237785,-440.0,0.00016438,2]
[365342589,1749610237794,-480.0,0.00016438,2]
[365342591,1749610237804,-490.0,0.00016438,2]
[365342593,1749610237813,-490.0,0.00016438,2]
[365342595,1749610237823,-490.0,0.00016438,2]
[365342597,1749610237833,-490.0,0.00016438,2]
[365342599,1749610237842,-480.0,0.00016438,2]
[365342601,1749610237851,-480.0,0.00016438,2]
[365342603,1749610237861,-262.7934595,0.00016438,2]
[365342778,1749610239673,-227.2065405,0.00016438,2]
[365342780,1749610239683,-490.0,0.00016438,2]
[365342782,1749610239694,-490.0,0.00016438,2]
[365342784,1749610239703,-490.0,0.00016438,2]
[365342786,1749610239712,-490.0,0.00016438,2]
[365342788,1749610239722,-490.0,0.00016438,2]
[365342790,1749610239731,-480.0,0.00016438,2]
[365342792,1749610239741,-490.0,0.00016438,2]
[365342794,1749610239750,-490.0,0.00016438,2]
[365342796,1749610239759,-480.0,0.00016438,2]
[365342798,1749610239769,-490.0,0.00016438,2]
[365342800,1749610239779,-160.0,0.00016438,2]
[365342802,1749610239789,-480.0,0.00016438,2]
[365342804,1749610239798,-226.40327804,0.00016438,2]
[365342806,1749610239808,-480.0,0.00016438,2]
[365342808,1749610239818,-303.21447418,0.00016438,2]
[365342810,1749610239828,-490.0,0.00016438,2]
[365342812,1749610239838,-490.0,0.00016438,2]
[365342814,1749610239847,-480.0,0.00016438,2]
[365342816,1749610239856,-490.0,0.00016438,2]
[365342818,1749610239866,-490.0,0.00016438,2]
[365342819,1749610239875,-490.0,0.00016438,2]
[365342821,1749610239884,-480.0,0.00016438,2]
[365342824,1749610239895,-490.0,0.00016438,2]
[365342825,1749610239911,-490.0,0.00016438,2]
[365342828,1749610239921,-490.0,0.00016438,2]
[365342830,1749610239931,-490.0,0.00016438,2]
[365342832,1749610239940,-490.0,0.00016438,2]
[365342834,1749610239950,-440.0,0.00016438,2]
[365342836,1749610239959,-480.0,0.00016438,2]
[365342837,1749610239969,-490.0,0.00016438,2]
[365342839,1749610239978,-490.0,0.00016438,2]
[365342841,1749610239987,-490.0,0.00016438,2]
[365342843,1749610239996,-490.0,0.00016438,2]
[365342845,1749610240006,-490.0,0.00016438,2]
[365342847,1749610240016,-490.0,0.00016438,2]
[365342849,1749610240025,-480.0,0.00016438,2]
[365342851,1749610240035,-490.0,0.00016438,2]
[365342854,1749610240045,-490.0,0.00016438,2]
[365342856,1749610240055,-490.0,0.00016438,2]
[365342857,1749610240064,-490.0,0.00016438,2]
[365342860,1749610240073,-490.0,0.00016438,2]
[365342861,1749610240083,-490.0,0.00016438,2]
[365342863,1749610240092,-490.0,0.00016438,2]
[365342865,1749610240102,-490.0,0.00016438,2]
[365342868,1749610240111,-490.0,0.00016438,2]
[365342869,1749610240121,-490.0,0.00016438,2]
[365342871,1749610240130,-480.0,0.00016438,2]
[365342873,1749610240139,-490.0,0.00016438,2]
[365342875,1749610240149,-490.0,0.00016438,2]
[365342877,1749610240158,-303.90139109,0.00016438,2]
[365342879,1749610240167,-490.0,0.00016438,2]
[365342881,1749610240176,-490.0,0.00016438,2]
[365342883,1749610240185,-480.0,0.00016438,2]
[365342885,1749610240194,-490.0,0.00016438,2]
[365342887,1749610240203,-490.0,0.00016438,2]
[365342889,1749610240214,-537.07767427,0.00016438,2]
[365342891,1749610240223,-300.0,0.00016438,2]
[365342893,1749610240234,-490.0,0.00016438,2]
[365342895,1749610240243,-480.0,0.00016438,2]
[365342897,1749610240253,-480.0,0.00016438,2]
[365342899,1749610240262,-490.0,0.00016438,2]
[365342901,1749610240271,-490.0,0.00016438,2]
[365342904,1749610240284,-480.0,0.00016438,2]
[365342906,1749610240293,-490.0,0.00016438,2]
[365342908,1749610240302,-490.0,0.00016438,2]
[365342910,1749610240312,-490.0,0.00016438,2]
[365342912,1749610240321,-490.0,0.00016438,2]
[365342914,1749610240330,-490.0,0.00016438,2]
[365342916,1749610240339,-380.82588571,0.00016438,2]
[365342918,1749610240348,-490.0,0.00016438,2]
[365342920,1749610240357,-490.0,0.00016438,2]
[365342924,1749610240367,-480.0,0.00016438,2]
[365342927,1749610240376,-490.0,0.00016438,2]
[365342929,1749610240385,-480.0,0.00016438,2]
[365342931,1749610240395,-490.0,0.00016438,2]
[365342933,1749610240404,-480.0,0.00016438,2]
[365342935,1749610240414,-490.0,0.00016438,2]
[365342937,1749610240423,-490.0,0.00016438,2]
[365342939,1749610240432,-420.37075621,0.00016438,2]
[365342942,1749610240453,-94.88924379,0.00016438,2]
[365342944,1749610240462,-480.0,0.00016438,2]
[365342946,1749610240471,-291.13735987,0.00016438,2]
[365342947,1749610240483,-490.0,0.00016438,2]
[365342948,1749610240492,-480.0,0.00016438,2]